bitfinex/quotes_SOLUSD_20240821
["timestamp","ask_amount","ask_price","bid_price","bid_amount"]
[1724228882944,13.29,142.43,142.4,45.0]
[1724228883237,13.29,142.43,142.37,20.0]
[1724228883442,13.29,142.43,142.38,45.0]
[1724228884127,14.69639706,142.43,142.38,45.0]
[1724228884325,13.29,142.43,142.35,20.0]
[1724228884636,13.29,142.43,142.36,65.0]
[1724228885013,13.29,142.43,142.37,21.40436381]
[1724228885221,13.29,142.43,142.38,45.0]
[1724228885434,13.29,142.43,142.39,1.40423354]
[1724228885934,13.29,142.43,142.4,1.40423587]
[1724228886133,13.29,142.43,142.38,45.0]
[1724228886345,13.29,142.41,142.38,45.0]
[1724228886516,13.29,142.41,142.37,45.0]
[1724228891242,15.1687,142.44,142.38,1.40440601]
[1724228892347,15.1687,142.44,142.37,65.0]
[1724228892516,13.29,142.43,142.37,65.0]
[1724228894421,15.1687,142.44,142.38,1.40421256]
[1724228895140,15.1687,142.44,142.37,65.0]
[1724228895347,13.29,142.43,142.37,65.0]
[1724228895645,13.29,142.41,142.36,20.0]
[1724228897739,16.57509706,142.44,142.37,45.0]
[1724228898155,1.53188706,142.43,142.36,20.0]
[1724228898333,1.40639706,142.42,142.33,35.9508]
[1724228898536,1.40639706,142.42,142.34,20.0]
[1724228898731,13.29,142.39,142.34,20.0]
[1724228899240,13.29,142.39,142.35,20.0]
[1724228899426,13.29,142.41,142.35,20.0]
[1724228899623,13.29,142.41,142.36,45.0]
[1724228899852,15.1687,142.44,142.37,20.0]
[1724228900028,13.29,142.43,142.38,45.0]
[1724228900719,16.57509706,142.44,142.38,45.0]
[1724228900720,13.29,142.41,142.38,45.0]
[1724228900920,13.29,142.41,142.35,20.0]
[1724228901152,13.29,142.41,142.36,45.0]
[1724228903056,13.29,142.39,142.35,45.0]
[1724228904559,15.1687,142.44,142.36,20.0]
[1724228904560,13.29,142.41,142.36,20.0]
[1724228904731,13.29,142.41,142.37,45.0]
[1724228906156,13.29,142.43,142.38,1.40443302]
[1724228906372,14.69639706,142.43,142.37,45.0]
[1724228906551,13.29,142.41,142.37,45.0]
[1724228906849,13.29,142.41,142.34,40.0]
[1724228907045,13.29,142.41,142.35,45.0]
[1724228908429,7.58089706,142.4,142.34,20.0]
[1724228908618,1.40639706,142.39,142.33,20.0]
[1724228909026,6.1745,142.4,142.33,20.0]
[1724228909326,13.29,142.39,142.33,20.0]
[1724228909745,6.1745,142.4,142.35,20.0]
[1724228909933,6.1745,142.4,142.36,45.0]
[1724228911851,21.2167,142.44,142.37,1.40454253]
[1724228912155,13.29,142.41,142.37,1.40454253]
[1724228913249,20.0,142.43,142.37,20.0]
[1724228913456,20.0,142.43,142.38,45.0]
[1724228913638,21.2167,142.44,142.38,45.0]
[1724228913838,13.29,142.43,142.38,45.0]
[1724228914458,15.6791,142.47,142.39,21.40429656]
[1724228914684,15.6791,142.47,142.4,45.0]
[1724228914685,13.29,142.46,142.4,45.0]
[1724228914839,13.29,142.44,142.4,45.0]
[1724228915177,13.29,142.44,142.37,20.0]
[1724228915340,13.29,142.44,142.38,46.40424676]
[1724228916032,13.29,142.44,142.39,21.40422482]
[1724228916235,13.29,142.44,142.4,45.0]
[1724228917145,13.29,142.42,142.37,20.0]
[1724228917339,15.6791,142.47,142.39,20.0]
[1724228917546,15.6791,142.47,142.4,46.37926801]
[1724228917765,15.6791,142.47,142.4,45.0]
[1724228919336,15.6791,142.47,142.41,1.40406782]
[1724228919542,13.29,142.45,142.41,1.40406782]
[1724228920474,13.29,142.45,142.41,21.40406782]
[1724228922470,15.6791,142.47,142.41,21.40406782]
[1724228922971,15.6791,142.47,142.43,20.0]
[1724228923142,15.6791,142.47,142.44,1.4039035]
[1724228923559,15.6791,142.47,142.43,20.0]
[1724228924368,20.7132064,142.48,142.43,20.0]
[1724228924572,20.7132064,142.48,142.44,1.40386076]
[1724228925277,7.4232064,142.48,142.44,1.40386076]
[1724228925468,13.29,142.47,142.44,1.40386076]
[1724228926260,7.4232064,142.48,142.44,1.40386076]
[1724228926476,14.1341064,142.48,142.44,1.40386076]
[1724228926682,14.1341064,142.48,142.43,20.0]
[1724228928571,13.29,142.46,142.43,20.0]
[1724228929369,13.29,142.46,142.42,45.0]
[1724228929672,13.29,142.46,142.43,1.4038496]
[1724228930077,13.29,142.46,142.43,21.4038496]
[1724228930473,0.8441064,142.48,142.43,21.4038496]
[1724228930776,0.8441064,142.48,142.44,45.0]
[1724228930945,0.8441064,142.48,142.45,1.4037644]
[1724228931154,0.8441064,142.48,142.45,21.4037644]
[1724228931354,0.8441064,142.48,142.46,1.40366761]
[1724228934083,0.8441064,142.48,142.45,20.0]
[1724228934882,0.8441064,142.48,142.46,1.40366196]
[1724228936486,0.8441064,142.48,142.44,45.0]
[1724228936487,0.8441064,142.48,142.47,21.40366377]
[1724228936780,0.8441064,142.48,142.47,65.0]
[1724228936989,0.8441064,142.48,142.45,20.0]
[1724228937273,0.8441064,142.48,142.46,1.40364411]
[1724228937660,0.8441064,142.48,142.46,46.40364411]
[1724228938108,0.8441064,142.48,142.47,20.0]
[1724228938887,0.8441064,142.48,142.47,65.0]
[1724228940488,0.8441064,142.48,142.45,20.0]
[1724228940659,0.8441064,142.48,142.47,20.0]
[1724228940858,0.8441064,142.48,142.47,65.0]
[1724228942757,0.8441064,142.48,142.45,20.0]
[1724228942969,0.8441064,142.48,142.46,45.0]
[1724228943163,0.8441064,142.48,142.47,1.40356869]
[1724228943881,14.1341064,142.48,142.45,20.0]
[1724228946979,14.1341064,142.48,142.43,20.0]
[1724228947172,14.1341064,142.48,142.44,65.0]
[1724228948685,14.1341064,142.48,142.43,20.0]
[1724228949983,14.1341064,142.48,142.41,20.0]
[1724228950300,14.1341064,142.48,142.42,45.0]
[1724228950470,14.1341064,142.48,142.43,20.0]
[1724228950800,13.29,142.44,142.41,20.0]
[1724228950971,0.8441064,142.48,142.41,20.0]
[1724228951294,13.29,142.45,142.41,20.0]
[1724228954793,13.29,142.47,142.42,46.40411752]
[1724228954995,13.29,142.47,142.42,45.0]
[1724228955169,13.29,142.47,142.43,1.40400232]
[1724228956872,13.29,142.45,142.41,20.0]
[1724228961502,13.29,142.43,142.36,36.5993]
[1724228961710,1.43115674,142.42,142.36,20.0]
[1724228962706,1.43115674,142.43,142.36,20.0]
[1724228962870,13.29,142.39,142.36,20.0]
[1724228965395,1.43115674,142.43,142.36,20.0]
[1724228965584,16.58559,142.44,142.37,46.40446636]
[1724228966787,16.58559,142.44,142.37,45.0]
[1724228969908,13.29,142.4,142.37,45.0]
[1724228971216,13.29,142.42,142.38,20.0]
[1724228971385,13.29,142.42,142.39,45.0]
[1724228977711,13.29,142.42,142.36,20.0]
[1724228977919,13.29,142.4,142.36,20.0]
[1724228979196,13.29,142.4,142.37,45.0]
[1724228979380,16.4601,142.44,142.37,46.40450876]
[1724228979381,13.29,142.42,142.37,46.40450876]
[1724228980483,13.29,142.42,142.38,20.0]
[1724228980890,13.29,142.42,142.38,21.37860304]
[1724228981717,13.29,142.42,142.38,20.0]
[1724228984220,16.4601,142.44,142.38,20.0]
[1724228984393,13.29,142.41,142.38,20.0]
[1724228987711,13.29,142.41,142.38,21.40437425]
[1724228987903,13.29,142.41,142.38,20.0]
[1724228991006,16.4601,142.44,142.39,1.40436391]
[1724228991202,13.29,142.43,142.39,1.40436391]
[1724228993304,6.4709,142.46,142.4,1.40434395]
[1724228993527,13.29,142.44,142.4,21.40434395]
[1724228994425,13.29,142.44,142.41,1.40425551]
[1724228994634,13.29,142.44,142.4,20.0]
[1724228995209,13.29,142.44,142.41,46.40416663]
[1724228996032,13.29,142.44,142.42,20.0]
[1724228996224,13.29,142.46,142.42,21.40406337]
[1724228996424,13.29,142.46,142.42,20.0]
[1724228997715,13.29,142.46,142.43,1.40396275]
[1724228997921,13.29,142.47,142.43,1.40396275]
[1724228998233,13.29,142.47,142.43,46.40396275]
[1724228998845,13.29,142.47,142.44,20.0]
[1724228999134,13.29,142.47,142.45,1.40381146]
[1724228999842,13.29,142.49,142.45,1.40381146]
[1724229000022,13.29,142.49,142.45,46.40381146]
[1724229000342,13.29,142.49,142.45,45.0]
[1724229000544,13.29,142.47,142.42,35.8199]
[1724229000847,13.29,142.45,142.42,35.8199]
[1724229001139,13.29,142.45,142.4,20.0]
[1724229001326,13.29,142.43,142.4,20.0]
[1724229002336,13.29,142.41,142.38,36.0581]
[1724229002846,1.43115674,142.44,142.38,36.0581]
[1724229003036,13.29,142.42,142.38,36.0581]
[1724229003215,1.43115674,142.44,142.38,36.0581]
[1724229003415,13.29,142.41,142.38,36.0581]
[1724229003822,1.43115674,142.44,142.38,36.0581]
[1724229004025,13.29,142.41,142.38,36.0581]
[1724229004727,13.29,142.41,142.38,20.0]
[1724229009342,13.29,142.41,142.36,20.0]
[1724229009518,13.29,142.41,142.37,65.0]
[1724229010832,13.29,142.41,142.37,45.0]
[1724229011033,13.29,142.39,142.36,20.0]
[1724229011250,1.43115674,142.44,142.36,20.0]
[1724229011251,13.29,142.41,142.36,20.0]
[1724229011419,13.29,142.41,142.37,45.0]
[1724229011617,16.58285674,142.44,142.34,35.7275]
[1724229011618,13.29,142.39,142.34,35.7275]
[1724229011841,13.29,142.39,142.35,65.0]
[1724229012943,13.29,142.39,142.36,20.0]
[1724229013348,13.29,142.39,142.35,20.0]
[1724229013645,13.29,142.39,142.36,21.40474116]
[1724229013847,13.29,142.41,142.36,20.0]
[1724229014943,13.29,142.41,142.36,21.40465548]
[1724229016348,13.29,142.41,142.36,20.0]
[1724229016545,13.29,142.41,142.37,45.0]
[1724229016853,13.29,142.41,142.37,46.40453586]
[1724229017152,13.29,142.41,142.37,45.0]
[1724229017345,13.29,142.41,142.36,20.0]
[1724229020028,13.29,142.39,142.35,20.0]
[1724229024345,13.29,142.39,142.34,35.7275]
[1724229025446,13.29,142.39,142.34,20.0]
[1724229028958,13.29,142.39,142.35,1.40473922]
[1724229031144,13.29,142.39,142.34,20.0]
[1724229035068,13.29,142.39,142.35,1.40478761]
[1724229035468,13.29,142.39,142.36,21.40464951]
[1724229035643,13.29,142.41,142.36,21.40464951]
[1724229036144,13.29,142.41,142.37,45.0]
[1724229036347,13.29,142.41,142.38,1.40453893]
[1724229036755,13.29,142.41,142.38,21.40453893]
[1724229036953,13.29,142.41,142.36,20.0]
[1724229037164,13.29,142.39,142.34,20.0]
[1724229040047,1.43115674,142.43,142.34,20.0]
[1724229040048,13.29,142.37,142.34,20.0]
[1724229043473,13.29,142.37,142.32,20.0]
[1724229043777,13.29,142.37,142.33,45.0]
[1724229045477,13.29,142.35,142.32,20.0]
[1724229047488,13.29,142.35,142.3,20.0]
[1724229047654,13.29,142.35,142.31,65.0]
[1724229049957,13.29,142.35,142.31,45.0]
[1724229050262,13.29,142.33,142.3,20.0]
[1724229050464,1.43115674,142.37,142.3,20.0]
[1724229050670,13.29,142.34,142.3,20.0]
[1724229051982,13.29,142.38,142.32,20.0]
[1724229052182,13.29,142.36,142.32,20.0]
[1724229052387,13.29,142.36,142.3,20.0]
[1724229052557,13.29,142.36,142.31,45.0]
[1724229053491,13.29,142.36,142.32,20.0]
[1724229054174,13.29,142.38,142.32,20.0]
[1724229054390,13.29,142.38,142.32,21.4049661]
[1724229054691,13.29,142.38,142.33,1.4049661]
[1724229055055,16.1934,142.39,142.34,21.40484868]
[1724229055284,16.1934,142.39,142.35,45.0]
[1724229055473,16.1934,142.39,142.36,1.40471176]
[1724229055981,16.1934,142.39,142.35,45.0]
[1724229056379,13.29,142.38,142.35,45.0]
[1724229056889,13.29,142.38,142.34,20.0]
[1724229060187,16.1934,142.39,142.34,20.0]
[1724229060376,29.4834,142.39,142.35,1.40479039]
[1724229060971,6.5769,142.42,142.36,20.0]
[1724229061191,13.29,142.4,142.36,20.0]
[1724229063695,16.2102,142.43,142.38,20.0]
[1724229063871,59.4664,142.45,142.37,1.40461609]
[1724229063872,13.29,142.44,142.4,20.0]
[1724229064188,13.29,142.44,142.41,1.40422141]
[1724229064395,13.29,142.44,142.4,20.0]
[1724229064578,13.29,142.42,142.38,20.0]
[1724229064770,13.29,142.42,142.39,45.0]
[1724229064971,13.29,142.44,142.4,20.0]
[1724229065182,13.29,142.44,142.4,21.404251]
[1724229065388,13.29,142.44,142.4,20.0]
[1724229066678,13.29,142.42,142.38,20.0]
[1724229067611,13.29,142.42,142.39,1.40443615]
[1724229068899,13.29,142.42,142.39,46.40433755]
[1724229069884,13.29,142.44,142.4,20.0]
[1724229071601,13.29,142.44,142.41,1.40422951]
[1724229071976,13.29,142.44,142.4,20.0]
[1724229072383,13.29,142.42,142.39,45.0]
[1724229078000,13.29,142.42,142.38,20.0]
[1724229079140,13.29,142.42,142.36,35.9043]
[1724229079430,13.29,142.4,142.36,20.0]
[1724229079719,13.29,142.4,142.34,20.0]
[1724229080526,13.29,142.4,142.35,1.40471087]
[1724229080704,13.29,142.4,142.36,20.0]
[1724229081623,13.29,142.4,142.37,1.40456234]
[1724229082118,13.29,142.4,142.36,20.0]
[1724229084416,13.29,142.42,142.36,20.0]
[1724229084803,13.29,142.42,142.38,20.0]
[1724229085121,13.29,142.42,142.39,1.40438164]
[1724229085432,13.29,142.42,142.38,20.0]
[1724229088409,19.5832,142.44,142.39,1.40446545]
[1724229088732,13.29,142.44,142.4,20.0]
[1724229088906,13.29,142.44,142.4,21.40425894]
[1724229090430,15.376,142.46,142.4,20.0]
[1724229090630,13.29,142.44,142.4,20.0]
[1724229092530,13.29,142.44,142.4,21.4042185]
[1724229092838,28.666,142.46,142.4,21.4042185]
[1724229093336,28.666,142.46,142.42,20.0]
[1724229093512,13.29,142.46,142.43,1.40403913]
[1724229094022,0.8441064,142.48,142.44,20.0]
[1724229094329,0.8441064,142.48,142.45,1.40381729]
[1724229095012,0.8441064,142.48,142.44,20.0]
[1724229095813,13.29,142.47,142.44,20.0]
[1724229096215,13.29,142.47,142.45,1.4038089]
[1724229097237,13.29,142.47,142.44,20.0]
[1724229097911,13.29,142.47,142.45,1.40381803]
[1724229098228,13.29,142.47,142.44,20.0]
[1724229099941,13.29,142.47,142.45,1.40380279]
[1724229100135,0.8441064,142.48,142.45,1.40380279]
[1724229100361,0.8441064,142.48,142.46,20.0]
[1724229100765,0.8441064,142.48,142.44,20.0]
[1724229101551,14.1341064,142.48,142.44,20.0]
[1724229102669,14.1341064,142.48,142.42,35.3461]
[1724229102862,14.1341064,142.48,142.43,65.0]
[1724229103077,14.1341064,142.48,142.43,45.0]
[1724229105071,13.29,142.46,142.43,45.0]
[1724229106874,13.29,142.46,142.42,20.0]
[1724229109364,13.29,142.46,142.43,45.0]
[1724229109572,14.1341064,142.48,142.43,45.0]
[1724229111758,14.1341064,142.48,142.44,20.0]
[1724229111948,14.1341064,142.48,142.44,21.4038772]
[1724229113076,14.1341064,142.48,142.44,20.0]
[1724229113886,0.8441064,142.48,142.46,20.0]
[1724229121455,0.8441064,142.48,142.47,45.0]
[1724229125879,0.8441064,142.48,142.46,20.0]
[1724229127973,0.8441064,142.48,142.47,1.40360636]
[1724229128177,0.8441064,142.48,142.47,45.0]
[1724229131168,0.8441064,142.48,142.46,20.0]
[1724229132274,0.8441064,142.48,142.42,20.0]
[1724229132275,14.1341064,142.48,142.42,20.0]
[1724229132472,13.29,142.46,142.42,20.0]
[1724229133592,0.8441064,142.48,142.45,20.0]
[1724229135292,0.8441064,142.48,142.46,46.4037791]
[1724229135676,0.8441064,142.48,142.46,46.40366231]
[1724229135871,0.8441064,142.48,142.46,45.0]
[1724229136074,0.8441064,142.48,142.45,20.0]
[1724229137497,0.8441064,142.48,142.46,1.40370417]
[1724229137699,0.8441064,142.48,142.47,20.0]
[1724229137901,0.8441064,142.48,142.47,65.0]
[1724229138691,0.8441064,142.48,142.47,20.0]
[1724229139281,0.8441064,142.48,142.47,65.0]
[1724229141082,0.8441064,142.48,142.47,85.25098]
[1724229141280,0.8441064,142.48,142.47,85.12549]
[1724229141481,0.8441064,142.48,142.47,85.0]
[1724229142873,0.8441064,142.48,142.47,65.0]
[1724229143088,0.8441064,142.48,142.45,20.0]
[1724229143401,0.8441064,142.48,142.47,20.0]
[1724229144402,0.8441064,142.48,142.47,65.0]
[1724229144780,0.8441064,142.48,142.47,66.4034654]
[1724229145192,0.8441064,142.48,142.47,65.0]
[1724229145500,0.8441064,142.48,142.47,86.40336901]
[1724229145701,0.8441064,142.48,142.47,86.65434901]
[1724229146780,0.8441064,142.48,142.47,99.94419221]
[1724229147285,0.8441064,142.48,142.47,131.83296458]
[1724229147604,15.1234,142.59,142.52,20.0]
[1724229147790,13.29,142.57,142.52,20.0]
[1724229148506,13.29,142.57,142.53,45.0]
[1724229148807,13.29,142.57,142.52,20.0]
[1724229149182,13.29,142.57,142.53,45.0]
[1724229149481,13.29,142.57,142.54,20.0]
[1724229150008,13.29,142.57,142.54,21.40285165]
[1724229150388,13.29,142.57,142.53,45.0]
[1724229150718,7.0664064,142.62,142.53,45.0]
[1724229150719,7.0664064,142.62,142.58,20.0]
[1724229150894,20.3564064,142.62,142.58,20.0]
[1724229151085,13.29,142.6,142.56,20.0]
[1724229151289,13.29,142.6,142.57,45.0]
[1724229151706,13.29,142.6,142.56,20.0]
[1724229153485,13.29,142.6,142.57,46.40261843]
[1724229154203,13.29,142.6,142.57,45.0]
[1724229154399,13.29,142.6,142.56,20.0]
[1724229156189,7.0664064,142.62,142.56,20.0]
[1724229156393,13.29,142.58,142.52,20.0]
[1724229156590,13.29,142.56,142.52,20.0]
[1724229157819,13.29,142.56,142.53,45.0]
[1724229159919,13.29,142.56,142.52,20.0]
[1724229160222,13.29,142.56,142.53,45.0]
[1724229160427,13.29,142.56,142.52,20.0]
[1724229161106,13.29,142.56,142.5,15.5336]
[1724229161107,0.12549,142.61,142.54,20.0]
[1724229161311,13.29,142.57,142.55,1.40285974]
[1724229161624,13.29,142.57,142.54,20.0]
[1724229161819,13.29,142.57,142.52,20.0]
[1724229162122,13.29,142.57,142.47,13.54813026]
[1724229162123,13.29,142.53,142.45,20.0]
[1724229162327,13.29,142.49,142.45,20.0]
[1724229163234,13.29,142.51,142.47,20.0]
[1724229163410,13.29,142.51,142.48,1.40352376]
[1724229163825,13.29,142.51,142.47,20.0]
[1724229164344,13.29,142.51,142.48,46.40348575]
[1724229164815,13.29,142.53,142.49,20.0]
[1724229165406,6.6083,142.56,142.49,20.0]
[1724229165607,13.29,142.53,142.49,20.0]
[1724229166412,13.29,142.53,142.5,1.40332402]
[1724229166614,13.29,142.53,142.5,46.40332402]
[1724229167520,13.29,142.55,142.51,20.0]
[1724229167835,14.72115674,142.55,142.51,20.0]
[1724229168005,13.29,142.55,142.51,20.0]
[1724229168746,13.29,142.55,142.51,21.40318782]
[1724229168916,13.29,142.55,142.51,20.0]
[1724229170519,13.29,142.53,142.5,45.0]
[1724229171935,13.29,142.53,142.5,46.40323105]
[1724229172308,13.29,142.55,142.51,20.0]
[1724229172508,13.29,142.55,142.5,45.0]
[1724229173342,13.29,142.55,142.51,1.4031976]
[1724229173628,13.29,142.55,142.51,21.4031976]
[1724229173806,13.29,142.55,142.52,1.40306533]
[1724229174007,13.29,142.55,142.51,20.0]
[1724229176440,13.29,142.55,142.5,45.0]
[1724229176629,13.29,142.53,142.49,20.0]
[1724229176822,1.43115674,142.52,142.47,20.0]
[1724229177023,1.43115674,142.55,142.47,20.0]
[1724229177224,6.6083,142.56,142.47,20.0]
[1724229177225,0.12549,142.54,142.47,20.0]
[1724229177527,6.6083,142.56,142.47,20.0]
[1724229177528,0.25098,142.55,142.48,1.40353715]
[1724229177727,0.25098,142.55,142.47,20.0]
[1724229178159,13.29,142.51,142.47,20.0]
[1724229178321,13.29,142.49,142.45,20.0]
[1724229178641,13.29,142.49,142.46,20.0]
[1724229180057,13.29,142.49,142.45,20.0]
[1724229180255,13.29,142.49,142.43,20.0]
[1724229180554,13.29,142.49,142.44,20.0]
[1724229180925,13.29,142.47,142.43,20.0]
[1724229181352,6.2501,142.5,142.43,20.0]
[1724229181659,13.29,142.48,142.43,20.0]
[1724229182246,13.29,142.48,142.44,46.40392395]
[1724229183637,13.29,142.48,142.43,20.0]
[1724229183845,13.29,142.46,142.43,20.0]
[1724229186449,13.29,142.48,142.43,20.0]
[1724229186648,13.29,142.48,142.44,1.40396661]
[1724229187348,13.29,142.48,142.44,46.40396661]
[1724229187938,13.29,142.49,142.45,20.0]
[1724229188141,13.29,142.49,142.46,1.40373251]
[1724229188369,13.29,142.49,142.45,20.0]
[1724229188554,13.29,142.49,142.46,45.0]
[1724229188945,22.6863,142.54,142.47,21.40370125]
[1724229189253,13.29,142.53,142.48,46.37610675]
[1724229189859,13.29,142.49,142.45,20.0]
[1724229190147,13.29,142.49,142.46,20.0]
[1724229190466,13.29,142.49,142.46,65.0]
[1724229190642,13.29,142.49,142.45,20.0]
[1724229190979,13.29,142.49,142.43,20.0]
[1724229191178,13.29,142.49,142.44,65.0]
[1724229192945,1.43115674,142.48,142.44,65.0]
[1724229193151,13.29,142.49,142.44,20.0]
[1724229193582,13.29,142.49,142.43,20.0]
[1724229193583,13.29,142.47,142.43,20.0]
[1724229195766,22.6863,142.54,142.46,20.0]
[1724229195953,13.29,142.52,142.46,20.0]
[1724229196153,13.29,142.5,142.44,20.0]
[1724229196354,1.43115674,142.49,142.44,20.0]
[1724229196556,13.29,142.5,142.44,20.0]
[1724229196772,13.29,142.5,142.46,20.0]
[1724229197774,13.29,142.5,142.44,65.0]
[1724229198282,1.43115674,142.49,142.44,65.0]
[1724229198450,13.29,142.5,142.44,65.0]
[1724229199765,13.29,142.5,142.45,1.40375876]
[1724229200145,13.29,142.5,142.44,65.0]
[1724229201864,1.43115674,142.51,142.44,65.0]
[1724229202065,13.29,142.48,142.44,65.0]
[1724229204364,13.29,142.48,142.44,21.40388184]
[1724229205369,22.6863,142.54,142.46,20.0]
[1724229205576,13.29,142.51,142.46,20.0]
[1724229206173,1.43115674,142.53,142.46,20.0]
[1724229206377,13.29,142.5,142.46,20.0]
[1724229206683,13.29,142.5,142.44,20.0]
[1724229206887,13.29,142.5,142.45,45.0]
[1724229207460,22.6863,142.54,142.45,45.0]
[1724229207659,13.29,142.5,142.45,45.0]
[1724229209483,13.29,142.48,142.43,20.0]
[1724229211082,13.29,142.48,142.44,20.0]
[1724229213608,13.29,142.5,142.46,20.0]
[1724229214877,13.29,142.5,142.44,20.0]
[1724229215297,13.29,142.5,142.44,21.37778004]
[1724229215501,13.29,142.5,142.44,20.0]
[1724229217579,13.29,142.5,142.44,21.40380046]
[1724229217994,13.29,142.5,142.46,20.0]
[1724229218605,13.29,142.52,142.47,1.40367681]
[1724229219100,22.6863,142.54,142.48,20.0]
[1724229219306,13.29,142.53,142.48,20.0]
[1724229219802,14.72115674,142.53,142.48,20.0]
[1724229220785,9.72115674,142.53,142.48,20.0]
[1724229221195,13.29,142.51,142.46,20.0]
[1724229221487,13.29,142.51,142.47,45.0]
[1724229223294,13.29,142.51,142.46,20.0]
[1724229230707,13.29,142.51,142.47,46.40355728]
[1724229231388,13.29,142.49,142.44,20.0]
[1724229231588,13.29,142.47,142.44,20.0]
[1724229231789,13.29,142.47,142.42,20.0]
[1724229232011,13.29,142.45,142.4,20.0]
[1724229233090,13.29,142.45,142.42,20.0]
[1724229233705,13.29,142.47,142.42,20.0]
[1724229234617,13.29,142.47,142.43,45.0]
[1724229235916,13.29,142.47,142.44,20.0]
[1724229236799,13.29,142.47,142.44,21.40386845]
[1724229237204,19.5249,142.49,142.44,20.0]
[1724229240120,13.29,142.49,142.44,20.0]
[1724229240318,13.29,142.49,142.45,1.40374282]
[1724229241326,13.29,142.49,142.44,20.0]
[1724229241699,13.29,142.47,142.44,20.0]
[1724229243594,13.29,142.49,142.44,20.0]
[1724229244008,13.29,142.49,142.45,1.40374142]
[1724229245830,13.29,142.49,142.44,20.0]
[1724229246000,13.29,142.49,142.45,1.40374125]
[1724229250745,13.29,142.5,142.46,21.40374171]
[1724229251222,13.29,142.5,142.44,20.0]
[1724229251417,13.29,142.5,142.44,21.40374169]
[1724229251639,13.29,142.5,142.46,20.0]
[1724229251813,13.29,142.5,142.46,21.40363254]
[1724229252215,13.29,142.5,142.46,20.0]
[1724229254845,13.29,142.5,142.46,21.40360579]
[1724229255025,13.29,142.5,142.47,45.0]
[1724229255338,13.29,142.5,142.46,20.0]
[1724229255746,23.0512,142.53,142.44,20.0]
[1724229255747,13.29,142.48,142.44,20.0]
[1724229257538,13.29,142.48,142.45,1.4038242]
[1724229257936,13.29,142.48,142.44,20.0]
[1724229258642,1.43115674,142.47,142.44,20.0]
[1724229259214,1.43115674,142.47,142.41,20.0]
[1724229260046,13.29,142.44,142.41,20.0]
[1724229260222,13.29,142.44,142.39,20.0]
[1724229262643,13.29,142.44,142.4,46.40427441]
[1724229263853,13.29,142.46,142.41,21.4041437]
[1724229264162,13.29,142.46,142.41,20.0]
[1724229264344,35.0744,142.48,142.43,20.0]
[1724229265922,35.0744,142.48,142.44,1.4038681]